[Event "Early-Titled-Tuesday-Blitz-February-20-2024"]
[Site "Chess.com"]
[Date "2024.02.20"]
[Round "9"]
[White "hansen"]
[Black "Abund"]
[Result "1-0"]
[WhiteElo "2914"]
[BlackElo "2786"]
[TimeControl "180+1"]
[EndTime "9:47:35 PST"]
[Termination "hansen won by resignation"]

1. e4 {[%clk 0:02:48.2]} 1... c6 {[%clk 0:02:59.7]} 2. Nf3 {[%clk 0:02:48.2]}
2... d5 {[%clk 0:03:00.6]} 3. d3 {[%clk 0:02:49.1]} 3... Qc7 {[%clk 0:02:58.6]}
4. Nc3 {[%clk 0:02:48.1]} 4... dxe4 {[%clk 0:02:55.4]} 5. Nxe4 {[%clk
0:02:46.9]} 5... Nf6 {[%clk 0:02:50.8]} 6. Qe2 {[%clk 0:02:46.5]} 6... Nxe4
{[%clk 0:02:36.9]} 7. Qxe4 {[%clk 0:02:43.2]} 7... Nd7 {[%clk 0:02:36.7]} 8. g3
{[%clk 0:02:43.3]} 8... Nf6 {[%clk 0:02:36.7]} 9. Qe2 {[%clk 0:02:44]} 9... Bg4
{[%clk 0:02:35.7]} 10. h3 {[%clk 0:02:44.5]} 10... Bf5 {[%clk 0:02:19.6]} 11.
Bg2 {[%clk 0:02:43.1]} 11... h6 {[%clk 0:02:12.5]} 12. Bf4 {[%clk 0:02:42.3]}
12... Qa5+ {[%clk 0:02:09.4]} 13. Bd2 {[%clk 0:02:42.3]} 13... Qb6 {[%clk
0:02:08.1]} 14. O-O-O {[%clk 0:02:38.7]} 14... e6 {[%clk 0:02:06.3]} 15. Ne5
{[%clk 0:02:33.9]} 15... Be7 {[%clk 0:01:57]} 16. g4 {[%clk 0:02:31.8]} 16...
Bh7 {[%clk 0:01:57.1]} 17. h4 {[%clk 0:02:32.2]} 17... Nd5 {[%clk 0:01:56.5]}
18. g5 {[%clk 0:02:31.7]} 18... Bf5 {[%clk 0:01:55.2]} 19. gxh6 {[%clk
0:02:27.2]} 19... gxh6 {[%clk 0:01:55]} 20. Bh3 {[%clk 0:02:28]} 20... Bxh3
{[%clk 0:01:47.9]} 21. Rxh3 {[%clk 0:02:28.1]} 21... Bf6 {[%clk 0:01:46.5]} 22.
Rf3 {[%clk 0:02:18.3]} 22... Qd4 {[%clk 0:01:34.7]} 23. Nc4 {[%clk 0:02:15.4]}
23... O-O-O {[%clk 0:01:23.4]} 24. Qe4 {[%clk 0:01:37.4]} 24... Rd7 {[%clk
0:01:01.6]} 25. c3 {[%clk 0:01:22.1]} 25... Qc5 {[%clk 0:00:59.2]} 26. h5 {[%clk
0:01:14.4]} 26... Qe7 {[%clk 0:00:44]} 27. Ne5 {[%clk 0:00:57.9]} 27... Rdd8
{[%clk 0:00:39.4]} 28. Kc2 {[%clk 0:00:48.8]} 28... Qc7 {[%clk 0:00:31.5]} 29.
Re1 {[%clk 0:00:42.4]} 29... Bxe5 {[%clk 0:00:30.2]} 30. Qxe5 {[%clk 0:00:41.5]}
30... Qxe5 {[%clk 0:00:29.9]} 31. Rxe5 {[%clk 0:00:42.4]} 31... Rdf8 {[%clk
0:00:23.5]} 32. c4 {[%clk 0:00:30.1]} 32... Ne7 {[%clk 0:00:24]} 33. Bc3 {[%clk
0:00:30.5]} 33... Rhg8 {[%clk 0:00:19.4]} 34. Bb4 {[%clk 0:00:27.7]} 34... Kd7
{[%clk 0:00:14.6]} 35. Rf6 {[%clk 0:00:27.9]} 35... Rh8 {[%clk 0:00:11.6]} 36.
f4 {[%clk 0:00:25.6]} 36... Ke8 {[%clk 0:00:08.3]} 37. f5 {[%clk 0:00:20.6]}
37... Ng8 {[%clk 0:00:08.6]} 38. Rexe6+ {[%clk 0:00:17.3]} 38... Kd7 {[%clk
0:00:02.6]} 39. Bxf8 {[%clk 0:00:10]} 39... fxe6 {[%clk 0:00:03]} 40. fxe6+
{[%clk 0:00:08.2]} 40... Ke8 {[%clk 0:00:03.7]} 41. Rf7 {[%clk 0:00:08.3]} 41...
Rh7 {[%clk 0:00:02.3]} 42. Rxh7 {[%clk 0:00:08.2]} 42... Kxf8 {[%clk 0:00:03.1]}
43. Rxb7 {[%clk 0:00:08.5]} 43... Nf6 {[%clk 0:00:03]} 44. Rf7+ {[%clk
0:00:08.8]} 1-0

[Event "Early-Titled-Tuesday-Blitz-February-20-2024"]
[Site "Chess.com"]
[Date "2024.02.20"]
[Round "9"]
[White "azikom"]
[Black "alpope"]
[Result "0-1"]
[WhiteElo "2655"]
[BlackElo "2532"]
[TimeControl "180+1"]
[EndTime "9:47:35 PST"]
[Termination "alpope won on time"]

1. d4 {[%clk 0:02:59.7]} 1... d5 {[%clk 0:02:58.1]} 2. Nf3 {[%clk 0:02:58.4]}
2... e6 {[%clk 0:02:58.3]} 3. Bf4 {[%clk 0:02:54.6]} 3... Nf6 {[%clk 0:02:56.7]}
4. e3 {[%clk 0:02:54.5]} 4... Bd6 {[%clk 0:02:57]} 5. Bg3 {[%clk 0:02:54.4]}
5... O-O {[%clk 0:02:55.6]} 6. c4 {[%clk 0:02:54.1]} 6... b6 {[%clk 0:02:41.8]}
7. Nc3 {[%clk 0:02:53.8]} 7... Qe7 {[%clk 0:02:32.7]} 8. Rc1 {[%clk 0:02:52.3]}
8... Rd8 {[%clk 0:02:27.5]} 9. a3 {[%clk 0:02:49]} 9... Ba6 {[%clk 0:02:17.6]}
10. Qa4 {[%clk 0:02:40.3]} 10... Bxg3 {[%clk 0:01:31.1]} 11. hxg3 {[%clk
0:02:39.6]} 11... c6 {[%clk 0:01:29.4]} 12. Ne5 {[%clk 0:02:32.6]} 12... dxc4
{[%clk 0:01:24.2]} 13. Nxc6 {[%clk 0:02:27.3]} 13... Nxc6 {[%clk 0:01:21]} 14.
Qxa6 {[%clk 0:02:16.9]} 14... e5 {[%clk 0:01:10.5]} 15. d5 {[%clk 0:02:13.1]}
15... Nxd5 {[%clk 0:01:03.9]} 16. Nxd5 {[%clk 0:02:14]} 16... Rxd5 {[%clk
0:01:03.6]} 17. Bxc4 {[%clk 0:02:03.5]} 17... Ra5 {[%clk 0:00:57.2]} 18. Bxf7+
{[%clk 0:01:47.2]} 18... Qxf7 {[%clk 0:00:48.2]} 19. Qd3 {[%clk 0:01:44.8]}
19... Ne7 {[%clk 0:00:46.2]} 20. Qxh7+ {[%clk 0:01:42.3]} 20... Kf8 {[%clk
0:00:46.8]} 21. Qe4 {[%clk 0:01:23.2]} 21... Rd8 {[%clk 0:00:44]} 22. Rh8+
{[%clk 0:01:21.3]} 22... Ng8 {[%clk 0:00:42.7]} 23. g4 {[%clk 0:00:57.5]} 23...
Rad5 {[%clk 0:00:38]} 24. Rc2 {[%clk 0:00:35.8]} 24... b5 {[%clk 0:00:17.5]} 25.
Ke2 {[%clk 0:00:34.3]} 25... a6 {[%clk 0:00:16.7]} 26. g5 {[%clk 0:00:33.3]}
26... g6 {[%clk 0:00:15]} 27. Rh3 {[%clk 0:00:29.4]} 27... Kg7 {[%clk
0:00:14.4]} 28. Rf3 {[%clk 0:00:28.9]} 28... Qd7 {[%clk 0:00:14.6]} 29. g4
{[%clk 0:00:14.6]} 29... Rd2+ {[%clk 0:00:13]} 30. Rxd2 {[%clk 0:00:14.5]} 30...
Qxd2+ {[%clk 0:00:13]} 31. Kf1 {[%clk 0:00:15.1]} 31... Qd3+ {[%clk 0:00:13.5]}
32. Qxd3 {[%clk 0:00:14.8]} 32... Rxd3 {[%clk 0:00:14.4]} 33. Kg2 {[%clk
0:00:03.6]} 33... Rb3 {[%clk 0:00:14.6]} 34. e4 {[%clk 0:00:03.1]} 34... Rxf3
{[%clk 0:00:12.4]} 35. Kxf3 {[%clk 0:00:03.1]} 35... Ne7 {[%clk 0:00:12.2]} 36.
Ke3 {[%clk 0:00:03.7]} 36... Kf7 {[%clk 0:00:12.5]} 37. f4 {[%clk 0:00:04.2]}
37... exf4+ {[%clk 0:00:12.7]} 38. Kxf4 {[%clk 0:00:05.1]} 38... Ke6 {[%clk
0:00:13.4]} 39. e5 {[%clk 0:00:05.1]} 39... Nc6 {[%clk 0:00:13.7]} 40. Ke4
{[%clk 0:00:05.4]} 40... Nxe5 {[%clk 0:00:14.2]} 0-1

[Event "Early-Titled-Tuesday-Blitz-February-20-2024"]
[Site "Chess.com"]
[Date "2024.02.20"]
[Round "9"]
[White "PavelShkapenko"]
[Black "CarlosjPineror"]
[Result "1/2-1/2"]
[WhiteElo "2722"]
[BlackElo "2582"]
[TimeControl "180+1"]
[EndTime "9:47:36 PST"]
[Termination "Game drawn by repetition"]

1. e4 {[%clk 0:03:00.9]} 1... c5 {[%clk 0:02:54]} 2. c3 {[%clk 0:02:59.8]} 2...
e6 {[%clk 0:02:53.8]} 3. d4 {[%clk 0:02:59.2]} 3... Nf6 {[%clk 0:02:54.5]} 4. e5
{[%clk 0:02:59.1]} 4... Nd5 {[%clk 0:02:55.2]} 5. dxc5 {[%clk 0:02:59.4]} 5...
Bxc5 {[%clk 0:02:54.5]} 6. Qg4 {[%clk 0:02:59.9]} 6... Bf8 {[%clk 0:02:20.4]} 7.
Nf3 {[%clk 0:02:58.4]} 7... Nc6 {[%clk 0:02:19]} 8. Qg3 {[%clk 0:02:48.9]} 8...
d6 {[%clk 0:02:17.7]} 9. Bb5 {[%clk 0:02:46.2]} 9... Qb6 {[%clk 0:02:05.5]} 10.
Bxc6+ {[%clk 0:02:05.1]} 10... Qxc6 {[%clk 0:02:05.6]} 11. O-O {[%clk
0:02:05.7]} 11... dxe5 {[%clk 0:02:00.4]} 12. Nxe5 {[%clk 0:02:05]} 12... Qc7
{[%clk 0:01:59.9]} 13. Nd2 {[%clk 0:02:00.2]} 13... f6 {[%clk 0:01:57.9]} 14.
Nef3 {[%clk 0:02:00.2]} 14... Qxg3 {[%clk 0:01:58.4]} 15. hxg3 {[%clk
0:02:00.7]} 15... Bd7 {[%clk 0:01:55.3]} 16. Ne4 {[%clk 0:02:00.7]} 16... e5
{[%clk 0:01:48.6]} 17. c4 {[%clk 0:01:59.8]} 17... Nb4 {[%clk 0:01:43.5]} 18.
Bd2 {[%clk 0:01:59.9]} 18... Bc6 {[%clk 0:01:43.6]} 19. Nc3 {[%clk 0:01:48.8]}
19... O-O-O {[%clk 0:01:41]} 20. Rfd1 {[%clk 0:01:46]} 20... Bc5 {[%clk
0:01:33]} 21. Ne1 {[%clk 0:01:44.4]} 21... Nd3 {[%clk 0:01:23.3]} 22. Nxd3
{[%clk 0:01:21.3]} 22... Rxd3 {[%clk 0:01:22.6]} 23. Kf1 {[%clk 0:01:18.5]}
23... Rhd8 {[%clk 0:01:18.8]} 24. Be1 {[%clk 0:01:17.5]} 24... Bb4 {[%clk
0:01:02.3]} 25. Rxd3 {[%clk 0:01:13.6]} 25... Rxd3 {[%clk 0:01:01.8]} 26. f3
{[%clk 0:01:08.8]} 26... h6 {[%clk 0:00:47.3]} 27. Ke2 {[%clk 0:01:02.2]} 27...
Rd8 {[%clk 0:00:47.7]} 28. Bf2 {[%clk 0:01:00.9]} 28... Bxc3 {[%clk 0:00:47.1]}
29. bxc3 {[%clk 0:01:00.6]} 29... b6 {[%clk 0:00:42.1]} 30. Rd1 {[%clk
0:00:54.8]} 30... Re8 {[%clk 0:00:37.1]} 31. a4 {[%clk 0:00:40.1]} 31... e4
{[%clk 0:00:30.5]} 32. f4 {[%clk 0:00:34.8]} 32... e3 {[%clk 0:00:27.5]} 33.
Bxe3 {[%clk 0:00:32.3]} 33... Bxg2 {[%clk 0:00:28.2]} 34. Ra1 {[%clk 0:00:29.8]}
34... Bb7 {[%clk 0:00:23.2]} 35. Kf2 {[%clk 0:00:23.6]} 35... Re4 {[%clk
0:00:18.1]} 36. c5 {[%clk 0:00:23.6]} 36... bxc5 {[%clk 0:00:17.1]} 37. Bxc5
{[%clk 0:00:23.9]} 37... Rc4 {[%clk 0:00:17.1]} 38. Bd4 {[%clk 0:00:23.8]} 38...
a5 {[%clk 0:00:16.7]} 39. Bb6 {[%clk 0:00:21.8]} 39... Bc6 {[%clk 0:00:16.3]}
40. Bxa5 {[%clk 0:00:21.8]} 40... Rxa4 {[%clk 0:00:16.6]} 41. Rxa4 {[%clk
0:00:21.4]} 41... Bxa4 {[%clk 0:00:17.5]} 42. Bb4 {[%clk 0:00:21.6]} 42... g6
{[%clk 0:00:15.2]} 43. Bf8 {[%clk 0:00:21.4]} 43... h5 {[%clk 0:00:15.4]} 44.
Be7 {[%clk 0:00:21]} 44... f5 {[%clk 0:00:15.6]} 45. Ke3 {[%clk 0:00:21.5]}
45... Kd7 {[%clk 0:00:13.6]} 46. Ba3 {[%clk 0:00:21.4]} 46... Kc6 {[%clk
0:00:13.6]} 47. Kd4 {[%clk 0:00:22]} 47... Bd1 {[%clk 0:00:13.9]} 48. Ke5 {[%clk
0:00:22]} 48... Bg4 {[%clk 0:00:14.6]} 49. Kf6 {[%clk 0:00:22.2]} 49... Kb5
{[%clk 0:00:14.5]} 50. Kxg6 {[%clk 0:00:21.5]} 50... Kc4 {[%clk 0:00:15.4]} 51.
Bb4 {[%clk 0:00:21.9]} 51... Kd5 {[%clk 0:00:15.7]} 52. Kf6 {[%clk 0:00:21.5]}
52... Kc4 {[%clk 0:00:16.6]} 53. Ke5 {[%clk 0:00:21.6]} 53... Bh3 {[%clk
0:00:15.3]} 54. Ba5 {[%clk 0:00:21.1]} 54... Bg4 {[%clk 0:00:16]} 55. Bb4 {[%clk
0:00:19.3]} 55... Bh3 {[%clk 0:00:16.6]} 56. Ba5 {[%clk 0:00:19.6]} 56... Bg4
{[%clk 0:00:17.2]} 57. Bb4 {[%clk 0:00:19.9]} 1/2-1/2

[Event "Early-Titled-Tuesday-Blitz-February-20-2024"]
[Site "Chess.com"]
[Date "2024.02.20"]
[Round "9"]
[White "Salem-AR"]
[Black "NewBornNow"]
[Result "1-0"]
[WhiteElo "2984"]
[BlackElo "2796"]
[TimeControl "180+1"]
[EndTime "9:47:37 PST"]
[Termination "Salem-AR won by resignation"]

1. d4 {[%clk 0:03:00.9]} 1... d6 {[%clk 0:02:59.2]} 2. Nf3 {[%clk 0:03:00.6]}
2... Nf6 {[%clk 0:02:58.4]} 3. Nc3 {[%clk 0:02:59.2]} 3... Nbd7 {[%clk
0:02:57.7]} 4. g3 {[%clk 0:02:57.2]} 4... g6 {[%clk 0:02:56.9]} 5. Bg2 {[%clk
0:02:57]} 5... Bg7 {[%clk 0:02:57.1]} 6. O-O {[%clk 0:02:57.5]} 6... O-O {[%clk
0:02:57]} 7. e4 {[%clk 0:02:57.4]} 7... e5 {[%clk 0:02:56.4]} 8. h3 {[%clk
0:02:56.2]} 8... c6 {[%clk 0:02:55.6]} 9. a4 {[%clk 0:02:55.9]} 9... a5 {[%clk
0:02:55.1]} 10. Re1 {[%clk 0:02:55.8]} 10... Re8 {[%clk 0:02:55.2]} 11. Be3
{[%clk 0:02:50]} 11... exd4 {[%clk 0:02:47.3]} 12. Nxd4 {[%clk 0:02:50]} 12...
Nc5 {[%clk 0:02:45.6]} 13. Bf4 {[%clk 0:02:40.3]} 13... Nh5 {[%clk 0:02:40.5]}
14. Bc1 {[%clk 0:02:37.7]} 14... Na6 {[%clk 0:02:37]} 15. Nb3 {[%clk 0:02:27.2]}
15... Nb4 {[%clk 0:02:33.1]} 16. g4 {[%clk 0:02:24.4]} 16... Nf6 {[%clk
0:02:30.7]} 17. f4 {[%clk 0:02:12]} 17... h5 {[%clk 0:02:18.5]} 18. g5 {[%clk
0:02:09.5]} 18... Nh7 {[%clk 0:02:18.3]} 19. Ne2 {[%clk 0:02:02.8]} 19... d5
{[%clk 0:02:14.5]} 20. e5 {[%clk 0:01:59.8]} 20... Nf8 {[%clk 0:01:50.4]} 21.
Be3 {[%clk 0:01:56.3]} 21... b6 {[%clk 0:01:45]} 22. c3 {[%clk 0:01:54]} 22...
Na6 {[%clk 0:01:44.7]} 23. Nbd4 {[%clk 0:01:47.2]} 23... Bb7 {[%clk 0:01:40.1]}
24. h4 {[%clk 0:01:37.2]} 24... Nc5 {[%clk 0:01:39.5]} 25. Ng3 {[%clk 0:01:37]}
25... Nfe6 {[%clk 0:01:35.2]} 26. f5 {[%clk 0:01:35.5]} 26... Bxe5 {[%clk
0:01:24.7]} 27. fxe6 {[%clk 0:01:35.6]} 27... fxe6 {[%clk 0:01:12.3]} 28. Bf2
{[%clk 0:01:02.4]} 28... Qc7 {[%clk 0:01:11.7]} 29. Qc2 {[%clk 0:00:57.3]} 29...
Kg7 {[%clk 0:00:50.2]} 30. Rxe5 {[%clk 0:00:57.4]} 30... Qxe5 {[%clk 0:00:50.2]}
31. Ndf5+ {[%clk 0:00:57.3]} 31... Kh7 {[%clk 0:00:45.8]} 32. Bd4 {[%clk
0:00:55.8]} 32... Qc7 {[%clk 0:00:40.1]} 33. Nxh5 {[%clk 0:00:53.1]} 33... gxf5
{[%clk 0:00:35.8]} 34. Nf6+ {[%clk 0:00:50.9]} 34... Kg6 {[%clk 0:00:35.7]} 35.
Rf1 {[%clk 0:00:27.8]} 35... Rh8 {[%clk 0:00:34.5]} 36. Qf2 {[%clk 0:00:18.8]}
36... Ne4 {[%clk 0:00:30.1]} 37. Bxe4 {[%clk 0:00:16.2]} 37... dxe4 {[%clk
0:00:30.1]} 38. h5+ {[%clk 0:00:16]} 38... Kf7 {[%clk 0:00:29.2]} 39. g6+ {[%clk
0:00:14.6]} 39... Ke7 {[%clk 0:00:28.9]} 40. Qh4 {[%clk 0:00:13.8]} 40... Kf8
{[%clk 0:00:18]} 41. Nxe4 {[%clk 0:00:13.4]} 41... Qd8 {[%clk 0:00:12.5]} 42.
Ng5 {[%clk 0:00:11.8]} 42... c5 {[%clk 0:00:08.5]} 43. Nxe6+ {[%clk 0:00:11]}
43... Kg8 {[%clk 0:00:08.7]} 44. Nxd8 {[%clk 0:00:10.2]} 1-0

[Event "Early-Titled-Tuesday-Blitz-February-20-2024"]
[Site "Chess.com"]
[Date "2024.02.20"]
[Round "9"]
[White "HamedWafa4"]
[Black "Manukyan_Artak"]
[Result "1-0"]
[WhiteElo "2718"]
[BlackElo "2554"]
[TimeControl "180+1"]
[EndTime "9:47:37 PST"]
[Termination "HamedWafa4 won on time"]

1. e4 {[%clk 0:03:00.9]} 1... c6 {[%clk 0:02:59.9]} 2. d4 {[%clk 0:03:01]} 2...
d5 {[%clk 0:03:00]} 3. e5 {[%clk 0:03:01.3]} 3... Bf5 {[%clk 0:02:59.2]} 4. h4
{[%clk 0:03:01.2]} 4... h5 {[%clk 0:02:58.9]} 5. Bd3 {[%clk 0:03:01.3]} 5...
Bxd3 {[%clk 0:02:58.4]} 6. Qxd3 {[%clk 0:03:02.2]} 6... Qa5+ {[%clk 0:02:56.8]}
7. Nd2 {[%clk 0:03:02.1]} 7... Qa6 {[%clk 0:02:56.5]} 8. e6 {[%clk 0:03:02.1]}
8... Qxd3 {[%clk 0:02:54.8]} 9. exf7+ {[%clk 0:03:03]} 9... Kxf7 {[%clk
0:02:54.7]} 10. cxd3 {[%clk 0:03:03.9]} 10... e6 {[%clk 0:02:43.4]} 11. Nh3
{[%clk 0:03:03.4]} 11... Nd7 {[%clk 0:02:39.6]} 12. Ng5+ {[%clk 0:03:03.3]}
12... Ke7 {[%clk 0:02:26.4]} 13. O-O {[%clk 0:02:58.7]} 13... Re8 {[%clk
0:02:10.8]} 14. Re1 {[%clk 0:02:55.2]} 14... Kf6 {[%clk 0:02:06.4]} 15. Ndf3
{[%clk 0:02:53.8]} 15... Bd6 {[%clk 0:02:00.3]} 16. Bd2 {[%clk 0:02:49.3]} 16...
Nh6 {[%clk 0:01:55.4]} 17. Re2 {[%clk 0:02:48.5]} 17... Nf7 {[%clk 0:01:51.3]}
18. Rae1 {[%clk 0:02:46.3]} 18... Nf8 {[%clk 0:01:46]} 19. Ne5 {[%clk
0:02:39.8]} 19... Bxe5 {[%clk 0:01:42.1]} 20. dxe5+ {[%clk 0:02:39.4]} 20... Kg6
{[%clk 0:01:39.8]} 21. Nh3 {[%clk 0:02:31.3]} 21... Kh7 {[%clk 0:01:37.2]} 22.
d4 {[%clk 0:02:26.6]} 22... Ng6 {[%clk 0:01:32.4]} 23. g3 {[%clk 0:02:25.8]}
23... b6 {[%clk 0:01:24]} 24. b4 {[%clk 0:02:25.6]} 24... Rc8 {[%clk 0:01:19.5]}
25. Be3 {[%clk 0:02:25.7]} 25... Rc7 {[%clk 0:01:17.9]} 26. Rc2 {[%clk
0:02:23.8]} 26... Rhc8 {[%clk 0:01:17]} 27. Rec1 {[%clk 0:02:22.9]} 27... Ne7
{[%clk 0:01:15.2]} 28. f4 {[%clk 0:02:10.8]} 28... Kg8 {[%clk 0:00:55]} 29. a4
{[%clk 0:02:01.7]} 29... a6 {[%clk 0:00:53.1]} 30. Kg2 {[%clk 0:01:55.3]} 30...
Kf8 {[%clk 0:00:52.5]} 31. Bf2 {[%clk 0:01:52]} 31... Ke8 {[%clk 0:00:51.9]} 32.
Rb1 {[%clk 0:01:45.5]} 32... Kd7 {[%clk 0:00:46.9]} 33. a5 {[%clk 0:01:41.5]}
33... b5 {[%clk 0:00:44.2]} 34. Ng1 {[%clk 0:01:25.7]} 34... Nf5 {[%clk
0:00:41.7]} 35. Rbc1 {[%clk 0:01:21.9]} 35... g6 {[%clk 0:00:41.2]} 36. Nf3
{[%clk 0:01:22.2]} 36... N5h6 {[%clk 0:00:40.5]} 37. Ne1 {[%clk 0:01:22.3]}
37... Nd8 {[%clk 0:00:37.5]} 38. Nd3 {[%clk 0:01:21]} 38... Nb7 {[%clk
0:00:37.7]} 39. Rf1 {[%clk 0:01:16.5]} 39... Ke7 {[%clk 0:00:32.8]} 40. Be1
{[%clk 0:01:15.2]} 40... Rf8 {[%clk 0:00:31.6]} 41. Bc3 {[%clk 0:01:15.3]} 41...
Nf5 {[%clk 0:00:29.9]} 42. Re2 {[%clk 0:01:12.9]} 42... Rf7 {[%clk 0:00:28.1]}
43. Ne1 {[%clk 0:01:09.4]} 43... Nh6 {[%clk 0:00:26.4]} 44. Nf3 {[%clk
0:01:09.4]} 44... Rf5 {[%clk 0:00:24.3]} 45. Nh2 {[%clk 0:01:03.4]} 45... Rc8
{[%clk 0:00:17.3]} 46. Bd2 {[%clk 0:01:03.2]} 46... Nd8 {[%clk 0:00:16.5]} 47.
Be3 {[%clk 0:01:02.3]} 47... Ke8 {[%clk 0:00:16.6]} 48. Nf3 {[%clk 0:00:59.7]}
48... Nhf7 {[%clk 0:00:13.6]} 49. Rc2 {[%clk 0:00:58.2]} 49... Rc7 {[%clk
0:00:13.6]} 50. Rfc1 {[%clk 0:00:58.2]} 50... Kd7 {[%clk 0:00:13.7]} 51. Nh2
{[%clk 0:00:54.1]} 51... Nh6 {[%clk 0:00:13.7]} 52. Kf1 {[%clk 0:00:52.2]} 52...
Ndf7 {[%clk 0:00:13.8]} 53. Ke2 {[%clk 0:00:52.4]} 53... Nh8 {[%clk 0:00:12.1]}
54. Kd2 {[%clk 0:00:49.9]} 54... Rc8 {[%clk 0:00:12.1]} 55. Nf3 {[%clk
0:00:49.8]} 55... N6f7 {[%clk 0:00:09.9]} 56. Ne1 {[%clk 0:00:47.5]} 56... Nh6
{[%clk 0:00:09.8]} 57. Nd3 {[%clk 0:00:47.4]} 57... Ng4 {[%clk 0:00:02.5]} 58.
Nc5+ {[%clk 0:00:46.6]} 1-0

[Event "Early-Titled-Tuesday-Blitz-February-20-2024"]
[Site "Chess.com"]
[Date "2024.02.20"]
[Round "9"]
[White "VinzentSpitzl"]
[Black "Licancabur"]
[Result "0-1"]
[WhiteElo "2534"]
[BlackElo "2433"]
[TimeControl "180+1"]
[EndTime "9:47:39 PST"]
[Termination "Licancabur won by checkmate"]

1. e4 {[%clk 0:03:00.9]} 1... Nf6 {[%clk 0:02:59.4]} 2. e5 {[%clk 0:03:00.5]}
2... Nd5 {[%clk 0:02:59.7]} 3. d4 {[%clk 0:03:01.1]} 3... d6 {[%clk 0:03:00]} 4.
Nf3 {[%clk 0:03:00.9]} 4... g6 {[%clk 0:02:59.9]} 5. Bc4 {[%clk 0:02:58.7]} 5...
Nb6 {[%clk 0:03:00.1]} 6. Bb3 {[%clk 0:02:59.1]} 6... Bg7 {[%clk 0:02:58.9]} 7.
O-O {[%clk 0:02:58.2]} 7... O-O {[%clk 0:02:48.9]} 8. Nc3 {[%clk 0:02:48]} 8...
Nc6 {[%clk 0:02:45.3]} 9. exd6 {[%clk 0:02:28.7]} 9... cxd6 {[%clk 0:02:44.1]}
10. h3 {[%clk 0:02:27]} 10... Bf5 {[%clk 0:02:31.6]} 11. Re1 {[%clk 0:02:23.4]}
11... Rc8 {[%clk 0:02:14.5]} 12. Bg5 {[%clk 0:02:21.7]} 12... h6 {[%clk
0:02:11.4]} 13. Bh4 {[%clk 0:02:16.2]} 13... g5 {[%clk 0:02:02.5]} 14. Bg3
{[%clk 0:02:16.2]} 14... Bg6 {[%clk 0:01:58.1]} 15. Qe2 {[%clk 0:02:02.7]} 15...
Re8 {[%clk 0:01:46.1]} 16. Rad1 {[%clk 0:02:01.6]} 16... e6 {[%clk 0:01:18.5]}
17. Nb5 {[%clk 0:01:51.3]} 17... Bf8 {[%clk 0:01:14.3]} 18. c3 {[%clk 0:01:44]}
18... a6 {[%clk 0:01:10]} 19. Na3 {[%clk 0:01:43.5]} 19... d5 {[%clk 0:00:46.5]}
20. Bc2 {[%clk 0:01:43.5]} 20... f5 {[%clk 0:00:45.2]} 21. Ne5 {[%clk
0:01:39.1]} 21... Nxe5 {[%clk 0:00:43.4]} 22. Bxe5 {[%clk 0:01:38.6]} 22... Nd7
{[%clk 0:00:42.2]} 23. Nb1 {[%clk 0:01:31.9]} 23... Nxe5 {[%clk 0:00:41]} 24.
Qxe5 {[%clk 0:01:31.9]} 24... Bd6 {[%clk 0:00:39.2]} 25. Qe2 {[%clk 0:01:32.2]}
25... Qb6 {[%clk 0:00:32.6]} 26. Bd3 {[%clk 0:01:24.1]} 26... Re7 {[%clk
0:00:29.3]} 27. Qc2 {[%clk 0:01:14.6]} 27... Bh5 {[%clk 0:00:21.7]} 28. Rc1
{[%clk 0:01:10.5]} 28... Rf8 {[%clk 0:00:17.8]} 29. Nd2 {[%clk 0:01:08.5]} 29...
Bf4 {[%clk 0:00:15.9]} 30. Rb1 {[%clk 0:01:05.8]} 30... Qc7 {[%clk 0:00:14.9]}
31. Nf1 {[%clk 0:01:04.6]} 31... Bd6 {[%clk 0:00:14.1]} 32. c4 {[%clk
0:00:54.2]} 32... Rc8 {[%clk 0:00:12.1]} 33. c5 {[%clk 0:00:53]} 33... Bf4
{[%clk 0:00:11.6]} 34. g3 {[%clk 0:00:50.9]} 34... Bf3 {[%clk 0:00:08.5]} 35.
gxf4 {[%clk 0:00:47.6]} 35... gxf4 {[%clk 0:00:08.5]} 36. Nd2 {[%clk 0:00:13.6]}
36... Rg7+ {[%clk 0:00:08.3]} 37. Kf1 {[%clk 0:00:14]} 37... Rg1+ {[%clk
0:00:07]} 38. Kxg1 {[%clk 0:00:11.4]} 38... Qg7+ {[%clk 0:00:06.9]} 39. Kf1
{[%clk 0:00:11.8]} 39... Qg2# {[%clk 0:00:07]} 0-1